fUSD/lending_fUSD_20241102
["ID","MTS","AMOUNT","RATE_DAILY","PERIOD"]
[341167709,1730507454527,-971.71,0.00047141,2]
[341167710,1730507454536,-151.0,0.00047151,120]
[341167711,1730507454545,-839.72,0.000472,60]
[341167712,1730507454554,-500.0,0.00047397,30]
[341167713,1730507454563,-500.0,0.00047397,30]
[341167714,1730507454573,-507.92049024,0.00047397,30]
[341167715,1730507454582,-500.0,0.00047397,30]
[341167716,1730507454592,-500.0,0.00047397,30]
[341167717,1730507454602,-16182.70850999,0.00047397,2]
[341167718,1730507454610,-195.92263993,0.00047397,30]
[341167719,1730507454620,-500.0,0.00047397,30]
[341167720,1730507454629,-150.0,0.00047397,30]
[341167721,1730507454639,-500.0,0.00047397,30]
[341167722,1730507454649,-500.0,0.00047397,30]
[341167723,1730507454659,-223.29005007,0.00047397,30]
[341167724,1730507454668,-500.0,0.00047397,30]
[341167725,1730507454677,-500.0,0.00047397,30]
[341167726,1730507454686,-500.0,0.00047397,30]
[341167727,1730507454696,-500.0,0.00047397,30]
[341167728,1730507454705,-500.0,0.00047397,30]
[341167729,1730507454714,-500.0,0.00047397,30]
[341167730,1730507454723,-500.0,0.00047397,30]
[341167731,1730507454732,-500.0,0.00047397,30]
[341167732,1730507454742,-500.0,0.00047397,30]
[341167733,1730507454752,-500.0,0.00047397,30]
[341167734,1730507454761,-204.73,0.00047397,30]
[341167735,1730507454771,-500.0,0.00047397,30]
[341167736,1730507454780,-500.0,0.00047397,30]
[341167737,1730507454789,-220.99,0.00047397,30]
[341167738,1730507454798,-196.98697688,0.00047397,30]
[341167739,1730507454807,-500.0,0.00047397,30]
[341167740,1730507454817,-500.0,0.00047397,30]
[341167741,1730507454826,-508.53565624,0.00047397,30]
[341167742,1730507454835,-500.0,0.00047397,30]
[341167743,1730507454844,-500.0,0.00047397,30]
[341167744,1730507454853,-500.0,0.00047397,30]
[341167745,1730507454862,-500.0,0.00047397,7]
[341167746,1730507454871,-500.0,0.00047397,30]
[341167747,1730507454880,-645.01804659,0.00047397,30]
[341167748,1730507454890,-409.45926027,0.00047397,30]
[341167749,1730507454899,-500.0,0.00047397,30]
[341167750,1730507454908,-679.72,0.00047397,7]
[341167751,1730507454918,-500.0,0.00047397,30]
[341167752,1730507454926,-500.0,0.00047397,30]
[341167753,1730507454935,-500.0,0.00047397,30]
[341167754,1730507454944,-190.47918265,0.00047397,30]
[341167755,1730507454953,-500.0,0.00047397,14]
[341167756,1730507454963,-293.73366808,0.00047397,30]
[341167757,1730507454972,-500.0,0.00047397,30]
[341167758,1730507454981,-500.0,0.00047397,2]
[341167759,1730507454990,-500.0,0.00047397,30]
[341167760,1730507454999,-500.0,0.00047397,30]
[341167761,1730507455009,-500.0,0.00047397,30]
[341167762,1730507455018,-500.0,0.00047397,30]
[341167763,1730507455028,-500.0,0.00047397,30]
[341167764,1730507455038,-500.0,0.00047397,30]
[341167765,1730507455047,-500.0,0.00047397,30]
[341167766,1730507455056,-500.0,0.00047397,30]
[341167767,1730507455066,-500.0,0.00047397,30]
[341167768,1730507455075,-500.0,0.00047397,30]
[341167769,1730507455085,-500.0,0.00047397,30]
[341167770,1730507455096,-612.21251922,0.00047397,30]
[341167771,1730507455105,-697.18,0.00047397,30]
[341167772,1730507455114,-500.0,0.00047397,30]
[341167773,1730507455124,-621.65156085,0.00047397,30]
[341167774,1730507455133,-500.0,0.00047397,30]
[341167775,1730507455143,-500.0,0.00047397,30]
[341167776,1730507455155,-500.0,0.00047397,30]
[341167777,1730507455164,-500.0,0.00047397,30]
[341167778,1730507455175,-500.0,0.00047397,30]
[341167779,1730507455184,-518.41,0.00047397,30]
[341167780,1730507455195,-500.0,0.00047397,30]
[341167781,1730507455205,-500.0,0.00047397,30]
[341167782,1730507455214,-500.0,0.00047397,30]
[341167783,1730507455224,-500.0,0.00047397,30]
[341167784,1730507455234,-500.0,0.00047397,30]
[341167785,1730507455244,-500.0,0.00047397,30]
[341167786,1730507455255,-500.0,0.00047397,30]
[341167787,1730507455265,-1500.0,0.00047479,2]
[341167788,1730507455275,-999.0,0.00047479,120]
[341167789,1730507455285,-2643.8887858,0.00047487,2]
[341167790,1730507455295,-1275.9801882,0.00047487,2]
[341167791,1730507455306,-150.110205,0.00047498,120]
[341167792,1730507455317,-2000.0,0.000475,32]
[341167793,1730507455327,-641.0,0.000475,30]
[341167794,1730507455337,-150.0,0.00047585,2]
[341167795,1730507455348,-1805.0482562,0.00047638,2]
[341167796,1730507455357,-160.605719,0.00047652,2]
[341167797,1730507455366,-500.0,0.00047654,45]
[341167798,1730507455375,-4201.62694204,0.00047661,16]
[341167799,1730507455385,-500.0,0.00047671,30]
[341167800,1730507455394,-500.0,0.00047671,30]
[341167801,1730507455403,-193.33965791,0.00047671,30]
[341167802,1730507455413,-500.0,0.00047671,30]
[341167803,1730507455423,-500.0,0.00047671,30]
[341167804,1730507455434,-150.0,0.00047671,30]
[341167805,1730507455443,-500.0,0.00047671,30]
[341167806,1730507455452,-500.0,0.00047671,30]
[341167807,1730507455461,-500.0,0.00047671,30]
[341167808,1730507455471,-500.0,0.00047671,30]
[341167809,1730507455480,-500.0,0.00047671,30]
[341167810,1730507455488,-500.0,0.00047671,30]
[341167811,1730507455497,-500.0,0.00047671,30]
[341167812,1730507455509,-500.0,0.00047671,30]
[341167813,1730507455519,-500.0,0.00047671,30]
[341167814,1730507455528,-500.0,0.00047671,30]
[341167815,1730507455537,-500.0,0.00047671,30]
[341167816,1730507455547,-500.0,0.00047671,30]
[341167817,1730507455556,-500.0,0.00047671,30]
[341167818,1730507455566,-500.0,0.00047671,30]
[341167819,1730507455575,-201.80674509,0.00047671,30]
[341167820,1730507455584,-500.0,0.00047671,30]
[341167821,1730507455595,-500.0,0.00047671,30]
[341167822,1730507455604,-500.0,0.00047671,30]
[341167823,1730507455613,-500.0,0.00047671,30]
[341167824,1730507455621,-500.0,0.00047671,7]
[341167825,1730507455633,-242.47804961,0.00047671,30]
[341167826,1730507455642,-268.79,0.00047671,30]
[341167827,1730507455652,-679.72,0.00047671,7]
[341167828,1730507455662,-289.43035259,0.00047671,30]
[341167829,1730507455671,-500.0,0.00047671,30]
[341167830,1730507455680,-500.0,0.00047671,14]
[341167831,1730507455689,-500.0,0.00047671,30]
[341167832,1730507455698,-500.0,0.00047671,2]
[341167833,1730507455708,-500.0,0.00047671,30]
[341167834,1730507455717,-500.0,0.00047671,30]
[341167835,1730507455726,-500.0,0.00047671,30]
[341167836,1730507455735,-500.0,0.00047671,30]
[341167837,1730507455744,-500.0,0.00047671,30]
[341167838,1730507455753,-500.0,0.00047671,30]
[341167839,1730507455763,-500.0,0.00047671,30]
[341167840,1730507455772,-447.32906298,0.00047671,30]
[341167841,1730507455781,-500.0,0.00047671,30]
[341167842,1730507455790,-500.0,0.00047671,30]
[341167843,1730507455799,-697.18,0.00047671,30]
[341167844,1730507455808,-500.0,0.00047671,30]
[341167845,1730507455818,-500.0,0.00047671,30]
[341167846,1730507455827,-500.0,0.00047671,30]
[341167847,1730507455836,-500.0,0.00047671,30]
[341167848,1730507455846,-500.0,0.00047671,30]
[341167849,1730507455855,-500.0,0.00047671,30]
[341167850,1730507455864,-518.41,0.00047671,30]
[341167851,1730507455873,-500.0,0.00047671,30]
[341167852,1730507455882,-500.0,0.00047671,30]
[341167853,1730507455892,-186.3982214,0.00047671,30]
[341167854,1730507455901,-500.0,0.00047671,30]
[341167855,1730507455910,-640.44,0.00047671,30]
[341167856,1730507455918,-500.0,0.00047671,30]
[341167857,1730507455927,-5991.61184781,0.00047683,7]
[341167858,1730507455936,-5043.40722866,0.000477,6]
[341167859,1730507455945,-152.77,0.000477,42]
[341167860,1730507455954,-152.77,0.000477,42]
[341167861,1730507455963,-152.77,0.000477,42]
[341167862,1730507455972,-152.77,0.000477,42]
[341167863,1730507455981,-152.77,0.000477,42]
[341167864,1730507455990,-152.77,0.000477,42]
[341167865,1730507455999,-152.77,0.000477,42]
[341167866,1730507456008,-152.77,0.000477,42]
[341167867,1730507456017,-152.77,0.000477,42]
[341167868,1730507456027,-152.77,0.000477,42]
[341167869,1730507456129,-417.0,0.000478,35]
[341167870,1730507456140,-500.0,0.00047887,30]
[341167871,1730507456150,-500.0,0.00047888,30]
[341167872,1730507456161,-500.0,0.000479,17]
[341167873,1730507456170,-202.45851065,0.00047915,2]
[341167874,1730507456180,-500.0,0.00047919,30]
[341167875,1730507456189,-5088.8009232,0.00047927,2]
[341167876,1730507456199,-500.0,0.00047927,30]
[341167877,1730507456208,-500.0,0.00047928,30]
[341167878,1730507456219,-9315.5721117,0.00047932,2]
[341167879,1730507456228,-500.0,0.00047936,30]
[341167880,1730507456237,-500.0,0.00047938,30]
[341167881,1730507456247,-500.0,0.00047944,30]
[341167882,1730507456257,-601.31325913,0.00047945,30]
[341167883,1730507456267,-495.71675659,0.00047945,30]
[341167884,1730507456276,-609.37149844,0.00047945,30]
[341167885,1730507456285,-462.38879807,0.00047945,30]
[341167886,1730507456294,-500.0,0.00047945,30]
[341167887,1730507456303,-500.0,0.00047945,30]
[341167888,1730507456313,-500.0,0.00047945,30]
[341167889,1730507456322,-500.0,0.00047945,30]
[341167890,1730507456331,-500.0,0.00047945,30]
[341167891,1730507456341,-500.0,0.00047945,30]
[341167892,1730507456351,-500.0,0.00047945,30]
[341167893,1730507456360,-500.0,0.00047945,30]
[341167894,1730507456369,-500.0,0.00047945,30]
[341167895,1730507456379,-500.0,0.00047945,30]
[341167896,1730507456388,-500.0,0.00047945,30]
[341167897,1730507456397,-500.0,0.00047945,30]
[341167898,1730507456406,-500.0,0.00047945,30]
[341167899,1730507456415,-500.0,0.00047945,7]
[341167900,1730507456427,-679.72,0.00047945,7]
[341167901,1730507456437,-500.0,0.00047945,14]
[341167902,1730507456446,-346.15693025,0.00047945,30]
[341167903,1730507456455,-500.0,0.00047945,2]
[341167904,1730507456465,-500.0,0.00047945,30]
[341167905,1730507456474,-500.0,0.00047945,30]
[341167906,1730507456484,-500.0,0.00047945,30]
[341167907,1730507456493,-478.0,0.00047945,30]
[341167908,1730507456504,-500.0,0.00047945,30]
[341167909,1730507456514,-287.71,0.00047945,30]
[341167910,1730507456524,-556.31136491,0.00047945,30]
[341167911,1730507456533,-697.18,0.00047945,30]
[341167912,1730507456544,-625.92,0.00047945,30]
[341167913,1730507456556,-542.49340621,0.00047945,30]
[341167914,1730507456565,-500.0,0.00047945,30]
[341167915,1730507456575,-500.0,0.00047945,30]
[341167916,1730507456586,-500.0,0.00047945,30]
[341167917,1730507456596,-500.0,0.00047945,30]
[341167918,1730507456605,-518.41,0.00047945,30]
[341167919,1730507456615,-500.0,0.00047945,30]
[341167920,1730507456624,-500.0,0.00047945,30]
[341167921,1730507456635,-500.0,0.00047945,30]
[341167922,1730507456644,-500.0,0.00047945,30]
[341167923,1730507456653,-10617.38421393,0.00047959,10]
[341167924,1730507456663,-503.98446401,0.00047965,30]
[341167925,1730507456672,-43113.30430761,0.00047965,10]
[341167926,1730507456682,-500.0,0.00047974,2]
[341167927,1730507456691,-43113.30430761,0.00047975,10]
[341167928,1730507456700,-500.0,0.00047975,120]
[341167929,1730507456710,-976.53072239,0.00047977,30]
[341167930,1730507456719,-10617.38421393,0.00047991,10]
[341167931,1730507456730,-1114.18588553,0.00047993,10]
[341167932,1730507456739,-1114.18588553,0.00047994,10]
[341167933,1730507456750,-1237.4112593,0.00047999,10]
[341167934,1730507456761,-500.0,0.00047999,2]
[341167935,1730507456771,-500.0,0.00047999,2]
[341167936,1730507456780,-500.0,0.00047999,2]
[341167937,1730507456789,-245.5860607,0.00047999,2]
[341167938,1730507456800,-10617.38421393,0.00048,10]
[341167939,1730507456812,-11538.0,0.00048,2]
[341167940,1730507456821,-1000.0,0.00048,120]
[341167941,1730507456831,-23559.0,0.00048,100]
[341167942,1730507456840,-299065.0,0.00048,30]
[341167943,1730507456850,-591.57637084,0.00048,49]
[341167944,1730507456859,-200.0,0.00048,120]
[341167945,1730507456869,-150.0,0.00048,14]
[341167946,1730507456878,-15000.0,0.00048,120]
[341167947,1730507456888,-150.0,0.00048,100]
[341167948,1730507456898,-4158.13654884,0.00048,30]
[341167949,1730507456908,-151.0,0.00048,14]
[341167950,1730507456918,-205.79465,0.00048,14]
[341167951,1730507456927,-205.79465,0.00048,14]
[341167952,1730507456937,-500.0,0.00048003,30]
[341167953,1730507456946,-6577.23711841,0.00048008,10]
[341167954,1730507456956,-1237.4112593,0.00048009,10]
[341167955,1730507456965,-342.18785405,0.00048015,3]
[341167956,1730507456975,-130936.93802039,0.00048015,3]
[341167957,1730507456984,-43113.30430761,0.00048015,10]
[341167958,1730507456994,-500.0,0.00048016,30]
[341167959,1730507457003,-500.0,0.00048031,30]
[341167960,1730507457012,-1237.4112593,0.00048035,10]
[341167961,1730507457022,-201629.69939966,0.00048036,10]
[341167962,1730507457033,-43113.30430761,0.00048046,10]
[341167963,1730507457043,-500.0,0.00048052,30]
[341167964,1730507457052,-500.0,0.00048057,30]
[341167965,1730507457062,-1089.93931336,0.00048068,10]
[341167966,1730507457071,-500.0,0.00048069,30]
[341167967,1730507457081,-1237.4112593,0.00048073,10]
[341167968,1730507457091,-178.84,0.0004808,2]
[341167969,1730507457100,-2836.5821437,0.00048082,2]
[341167970,1730507457110,-1366.2383743,0.00048082,2]
[341167971,1730507457119,-1932.7307884,0.00048082,2]
[341167972,1730507457128,-205.79465,0.0004809,14]
[341167973,1730507457137,-205.79465,0.0004809,14]
[341167974,1730507457147,-43113.30430761,0.0004809,10]
[341167975,1730507457156,-500.0,0.00048094,30]
[341167976,1730507457165,-500.0,0.00048096,30]
[341167977,1730507457174,-5459.6857133,0.00048099,2]
[341167978,1730507457183,-10014.549302,0.00048099,2]
[341167979,1730507457192,-500.0,0.00048099,30]
[341167980,1730507457201,-10617.38421393,0.00048105,10]
[341167981,1730507457210,-1089.93931336,0.00048106,10]
[341167982,1730507457220,-201629.69939966,0.0004811,10]
[341167983,1730507457229,-500.0,0.00048114,30]
[341167984,1730507457238,-10617.38421393,0.00048115,10]
[341167985,1730507457247,-1114.18588553,0.00048117,10]
[341167986,1730507457256,-7459.92580266,0.00048117,10]
[341167987,1730507457266,-1089.93931336,0.00048124,10]
[341167988,1730507457276,-500.0,0.00048124,30]
[341167989,1730507457285,-500.0,0.00048127,30]
[341167990,1730507457294,-201629.69939966,0.00048132,10]
[341167991,1730507457303,-205.79465,0.00048132,14]
[341167992,1730507457312,-205.79465,0.00048132,14]
[341167993,1730507457321,-1089.93931336,0.0004814,10]
[341167994,1730507457330,-1089.93931336,0.00048149,10]
[341167995,1730507457340,-999.0,0.00048164,120]
[341167996,1730507457351,-6577.23711841,0.00048167,10]
[341167997,1730507457360,-500.0,0.00048171,30]
[341167998,1730507457369,-201629.69939966,0.00048173,10]
[341167999,1730507457379,-1114.18588553,0.00048173,10]
[341168000,1730507457388,-1967.96009651,0.00048176,10]
[341168001,1730507457398,-500.0,0.00048178,30]
[341168002,1730507457407,-500.0,0.00048191,30]
[341168003,1730507457417,-1237.4112593,0.00048192,10]
[341168004,1730507457429,-1114.18588553,0.00048192,10]
[341168005,1730507457438,-508.24276967,0.00048193,30]
[341168006,1730507457447,-201629.69939966,0.00048194,10]
[341168007,1730507457456,-205.79465,0.00048194,14]
[341168008,1730507457466,-205.79465,0.00048194,14]
[341168009,1730507457476,-500.0,0.00048204,30]
[341168010,1730507457485,-500.0,0.00048219,30]
[341168011,1730507457494,-500.0,0.00048219,30]
[341168012,1730507457505,-500.0,0.00048219,30]
[341168013,1730507457514,-293.52557147,0.00048219,30]
[341168014,1730507457523,-500.0,0.00048219,30]
[341168015,1730507457532,-500.0,0.00048219,30]
[341168016,1730507457541,-500.0,0.00048219,30]
[341168017,1730507457550,-500.0,0.00048219,30]
[341168018,1730507457559,-500.0,0.00048219,7]
[341168019,1730507457568,-679.72,0.00048219,7]
[341168020,1730507457578,-583.29615387,0.00048219,14]
[341168021,1730507457588,-500.0,0.00048219,2]
[341168022,1730507457601,-268.33541034,0.00048219,30]
[341168023,1730507457611,-500.0,0.00048219,30]
[341168024,1730507457621,-697.18,0.00048219,30]
[341168025,1730507457630,-500.0,0.00048219,30]
[341168026,1730507457641,-500.0,0.00048219,30]
[341168027,1730507457652,-401.01091398,0.00048219,30]
[341168028,1730507457663,-500.0,0.00048219,30]
[341168029,1730507457672,-518.41,0.00048219,30]
[341168030,1730507457684,-500.0,0.00048219,30]
[341168031,1730507457694,-500.0,0.00048219,30]
[341168032,1730507457704,-500.0,0.00048219,30]
[341168033,1730507457714,-294.02867001,0.00048219,30]
[341168034,1730507457724,-500.0,0.00048232,30]
[341168035,1730507457733,-500.0,0.00048239,30]
[341168036,1730507457745,-500.0,0.00048264,30]
[341168037,1730507457757,-500.0,0.00048268,30]
[341168038,1730507457766,-641.0,0.000483,30]
[341168039,1730507457776,-269.20843985,0.000483,2]
[341168040,1730507457785,-619.17766298,0.000483,2]
[341168041,1730507457794,-24443.3440602,0.000483,2]
[341168042,1730507457804,-500.0,0.0004831,30]
[341168043,1730507457815,-500.0,0.00048312,30]
[341168044,1730507457824,-500.0,0.00048325,30]
[341168045,1730507457834,-500.0,0.00048326,30]
[341168046,1730507457846,-500.0,0.00048345,30]
[341168047,1730507457856,-500.0,0.00048386,30]
[341168048,1730507457865,-500.0,0.00048394,30]
[341168049,1730507457874,-500.0,0.00048397,30]
[341168050,1730507457883,-506.93100325,0.00048408,30]
[341168051,1730507457892,-500.0,0.0004842,30]
[341168052,1730507457902,-167.11,0.00048429,2]
[341168053,1730507457913,-500.0,0.00048431,30]
[341168054,1730507457922,-182.43,0.00048441,2]
[341168055,1730507457932,-500.0,0.00048458,30]
[341168056,1730507457942,-500.0,0.00048473,30]
[341168057,1730507457954,-500.0,0.00048476,30]
[341168058,1730507457964,-500.0,0.00048478,30]
[341168059,1730507457974,-2000.0,0.00048493,2]
[341168060,1730507457984,-2000.0,0.00048493,2]
[341168061,1730507457994,-480.67,0.00048493,30]
[341168062,1730507458004,-500.0,0.00048493,30]
[341168063,1730507458013,-500.0,0.00048493,30]
[341168064,1730507458023,-500.0,0.00048493,30]
[341168065,1730507458032,-239.12,0.00048493,30]
[341168066,1730507458042,-500.0,0.00048493,30]
[341168067,1730507458051,-500.0,0.00048493,30]
[341168068,1730507458060,-500.0,0.00048493,7]
[341168069,1730507458070,-679.72,0.00048493,7]
[341168070,1730507458080,-500.0,0.00048493,2]
[341168071,1730507458089,-421.37233912,0.00048493,30]
[341168072,1730507458103,-697.18,0.00048493,30]
[341168073,1730507458112,-500.0,0.00048493,30]
[341168074,1730507458122,-500.0,0.00048493,30]
[341168075,1730507458131,-500.0,0.00048493,30]
[341168076,1730507458140,-518.41,0.00048493,30]
[341168077,1730507458149,-500.0,0.00048493,30]
[341168078,1730507458158,-500.0,0.00048493,30]
[341168079,1730507458168,-500.0,0.00048493,30]
[341168080,1730507458177,-150.110205,0.00048498,120]
[341168081,1730507458186,-150.0,0.000485,101]
[341168082,1730507458196,-500.0,0.00048508,3]
[341168083,1730507458205,-500.0,0.00048509,30]
[341168084,1730507458214,-500.0,0.00048512,30]
[341168085,1730507458224,-500.0,0.00048517,30]
[341168086,1730507458234,-500.0,0.00048527,30]
[341168087,1730507458243,-9999.99999901,0.00048532,120]
[341168088,1730507458253,-500.0,0.00048543,30]
[341168089,1730507458263,-500.0,0.00048555,30]
[341168090,1730507458272,-500.0,0.0004859,30]
[341168091,1730507458281,-500.0,0.00048604,30]
[341168092,1730507458291,-500.0,0.00048611,30]
[341168093,1730507458300,-500.0,0.00048637,30]
[341168094,1730507458311,-503.9815185,0.00048655,30]
[341168095,1730507458322,-5009.00075,0.0004866,30]
[341168096,1730507458334,-500.0,0.00048663,30]
[341168097,1730507458347,-150.0,0.00048666,2]
[341168098,1730507458357,-500.0,0.00048673,30]
[341168099,1730507458366,-500.0,0.00048675,30]
[341168100,1730507458375,-500.0,0.00048677,30]
[341168101,1730507458385,-500.0,0.00048687,30]
[341168102,1730507458394,-500.0,0.00048722,30]
[341168103,1730507458403,-500.0,0.00048746,30]
[341168104,1730507458412,-500.0,0.00048752,30]
[341168105,1730507458421,-500.0,0.00048757,30]
[341168106,1730507458433,-2000.0,0.00048767,2]
[341168107,1730507458442,-2000.0,0.00048767,2]
[341168108,1730507458451,-251.83,0.00048767,30]
[341168109,1730507458460,-308.71,0.00048767,30]
[341168110,1730507458470,-500.0,0.00048767,30]
[341168111,1730507458479,-500.0,0.00048767,30]
[341168112,1730507458488,-500.0,0.00048767,30]
[341168113,1730507458498,-515.2363728,0.00048767,7]
[341168114,1730507458507,-679.72,0.00048767,7]
[341168115,1730507458516,-500.0,0.00048767,2]
[341168116,1730507458527,-697.18,0.00048767,30]
[341168117,1730507458538,-500.0,0.00048767,30]
[341168118,1730507458549,-589.05822182,0.00048767,30]
[341168119,1730507458558,-518.41,0.00048767,30]
[341168120,1730507458568,-500.0,0.00048767,30]
[341168121,1730507458580,-500.0,0.00048767,30]
[341168122,1730507458671,-334.57702719,0.00048767,30]
[341168123,1730507458691,-500.0,0.00048782,3]
[341168124,1730507458703,-500.0,0.00048782,30]
[341168125,1730507458713,-500.0,0.00048784,30]
[341168126,1730507458726,-500.0,0.00048785,30]
[341168127,1730507458737,-500.0,0.00048787,30]
[341168128,1730507458747,-500.0,0.00048807,30]
[341168129,1730507458756,-500.0,0.00048813,30]
[341168130,1730507458766,-500.0,0.00048829,30]
[341168131,1730507458776,-500.0,0.00048844,30]
[341168132,1730507458787,-999.0,0.00048849,120]
[341168133,1730507458797,-310.26650371,0.00048849,2]
[341168134,1730507458808,-500.0,0.00048855,30]
[341168135,1730507458818,-500.0,0.00048865,30]
[341168136,1730507458829,-500.0,0.00048869,30]
[341168137,1730507458842,-521.19453354,0.00048877,30]
[341168138,1730507458851,-507.90773758,0.00048881,30]
[341168139,1730507458860,-996.0,0.00048898,30]
[341168140,1730507458869,-1333.5340785,0.000489,30]
[341168141,1730507458880,-500.0,0.00048929,30]
[341168142,1730507458890,-500.0,0.00048972,30]
[341168143,1730507458901,-500.0,0.00048994,30]
[341168144,1730507458911,-690.94109107,0.00049,2]
[341168145,1730507458920,-500.0,0.00049,3]
[341168146,1730507458929,-64804.12849686,0.00049,120]
[341168147,1730507458938,-900.0,0.00049,50]
[341168148,1730507458947,-30000.0,0.00049,120]
[341168149,1730507458956,-4500.0,0.00049,120]
[341168150,1730507458966,-3091.30186994,0.00049,120]
[341168151,1730507458975,-310.4791739,0.00049,120]
[341168152,1730507458984,-15000.0,0.00049,120]
[341168153,1730507458993,-150.0,0.00049,102]
[341168154,1730507459002,-11541.0,0.00049,3]
[341168155,1730507459011,-500.0,0.00049002,30]
[341168156,1730507459020,-500.0,0.0004902,30]
[341168157,1730507459029,-629.37218833,0.00049031,30]
[341168158,1730507459039,-2000.0,0.00049041,2]
[341168159,1730507459048,-2000.0,0.00049041,2]
[341168160,1730507459058,-319.79,0.00049041,30]
[341168161,1730507459068,-468.90846018,0.00049041,30]
[341168162,1730507459077,-500.0,0.00049041,30]
[341168163,1730507459086,-679.72,0.00049041,7]
[341168164,1730507459098,-500.0,0.00049041,2]
[341168165,1730507459107,-697.18,0.00049041,30]
[341168166,1730507459116,-500.0,0.00049041,30]
[341168167,1730507459127,-518.41,0.00049041,30]
[341168168,1730507459139,-500.0,0.00049041,30]
[341168169,1730507459149,-500.0,0.00049041,30]
[341168170,1730507459158,-500.0,0.00049056,3]
[341168171,1730507459168,-531.08657266,0.00049069,30]
[341168172,1730507459178,-500.0,0.00049073,30]
[341168173,1730507459189,-958.32257527,0.00049076,30]
[341168174,1730507459199,-523.95202447,0.00049079,30]
[341168175,1730507459210,-1268.63318,0.00049088,30]
[341168176,1730507459220,-641.0,0.000491,30]
[341168177,1730507459231,-500.0,0.00049287,120]
[341168178,1730507459240,-500.0,0.00049287,120]
[341168179,1730507459249,-500.0,0.00049287,120]
[341168180,1730507459259,-443.66649536,0.00049287,120]
[341168181,1730507459268,-1268.63318,0.00049288,30]
[341168182,1730507459278,-925.0,0.00049289,7]
[341168183,1730507459286,-322.67,0.00049289,7]
[341168184,1730507459296,-353.03,0.00049289,7]
[341168185,1730507459307,-23267.75571219,0.000493,3]
[341168186,1730507459316,-3000.0,0.000493,2]
[341168187,1730507459326,-2000.0,0.00049315,2]
[341168188,1730507459338,-2000.0,0.00049315,2]
[341168189,1730507459348,-2500.0,0.00049315,7]
[341168190,1730507459358,-500.0,0.00049315,120]
[341168191,1730507459368,-500.0,0.00049315,120]
[341168192,1730507459378,-500.0,0.00049315,120]
[341168193,1730507459388,-500.0,0.00049315,120]
[341168194,1730507459398,-500.0,0.00049315,120]
[341168195,1730507459408,-500.0,0.00049315,120]
[341168196,1730507459418,-500.0,0.00049315,120]
[341168197,1730507459433,-500.0,0.00049315,120]
[341168198,1730507459441,-500.0,0.00049315,120]
[341168199,1730507459450,-500.0,0.00049315,120]
[341168200,1730507459459,-500.0,0.00049315,120]
[341168201,1730507459471,-500.0,0.00049315,120]
[341168202,1730507459481,-180.68642587,0.00049315,120]
[341168203,1730507459490,-500.0,0.00049315,120]
[341168204,1730507459502,-500.0,0.00049315,120]
[341168205,1730507459513,-500.0,0.00049315,120]
[341168206,1730507459524,-500.0,0.00049315,120]
[341168207,1730507459534,-500.0,0.00049315,120]
[341168208,1730507459544,-500.0,0.00049315,120]